[Event "Live Chess"]
[Site "Chess.com"]
[Date "2024.06.02"]
[Round "-"]
[White "ACM42"]
[Black "CheckThis4"]
[Result "0-1"]
[WhiteElo "2187"]
[BlackElo "2681"]
[TimeControl "300"]
[EndTime "7:09:58 PDT"]
[Termination "CheckThis4 won by resignation"]

1. e4 {[%clk 0:04:57.1]} 1... c5 {[%clk 0:04:57.3]} 2. Nf3 {[%clk 0:04:56.5]}
2... Nc6 {[%clk 0:04:56.9]} 3. d4 {[%clk 0:04:56.4]} 3... cxd4 {[%clk
0:04:55.5]} 4. Nxd4 {[%clk 0:04:56.3]} 4... g6 {[%clk 0:04:55.1]} 5. Nc3 {[%clk
0:04:54.3]} 5... Bg7 {[%clk 0:04:54.2]} 6. Be3 {[%clk 0:04:53.8]} 6... Nf6
{[%clk 0:04:52.7]} 7. Nxc6 {[%clk 0:04:53.2]} 7... bxc6 {[%clk 0:04:52.6]} 8. e5
{[%clk 0:04:52.7]} 8... Nd5 {[%clk 0:04:51]} 9. Nxd5 {[%clk 0:04:52.2]} 9...
cxd5 {[%clk 0:04:50.9]} 10. Qxd5 {[%clk 0:04:51.8]} 10... Rb8 {[%clk 0:04:50.3]}
11. Bd4 {[%clk 0:04:51.2]} 11... O-O {[%clk 0:04:49]} 12. O-O-O {[%clk 0:04:49]}
12... Bb7 {[%clk 0:04:48.2]} 13. Qc5 {[%clk 0:04:44.9]} 13... Be4 {[%clk
0:04:40.2]} 14. Bd3 {[%clk 0:04:40.5]} 14... Bxg2 {[%clk 0:04:38]} 15. Rhg1
{[%clk 0:04:34]} 15... Bf3 {[%clk 0:04:36.9]} 16. Rde1 {[%clk 0:04:28.3]} 16...
d6 {[%clk 0:04:27]} 17. exd6 {[%clk 0:04:22]} 17... exd6 {[%clk 0:04:26.9]} 18.
Qc3 {[%clk 0:04:14.5]} 18... Rc8 {[%clk 0:04:19.8]} 19. Qb4 {[%clk 0:03:56.4]}
19... Qh4 {[%clk 0:04:11.8]} 20. Rg3 {[%clk 0:03:28.6]} 20... Bxd4 {[%clk
0:04:03.3]} 21. Qxd6 {[%clk 0:03:17.8]} 21... Bxf2 {[%clk 0:03:41.4]} 0-1

[Event "Live Chess"]
[Site "Chess.com"]
[Date "2024.06.02"]
[Round "-"]
[White "dmitro74"]
[Black "LL220284LL"]
[Result "0-1"]
[WhiteElo "1751"]
[BlackElo "2464"]
[TimeControl "300"]
[EndTime "7:09:59 PDT"]
[Termination "LL220284LL won by resignation"]

1. d4 {[%clk 0:04:57.9]} 1... c6 {[%clk 0:04:59.9]} 2. e4 {[%clk 0:04:56.4]}
2... g6 {[%clk 0:04:47.8]} 3. c4 {[%clk 0:04:53.2]} 3... Bg7 {[%clk 0:04:45.7]}
4. Nc3 {[%clk 0:04:51.6]} 4... d6 {[%clk 0:04:30.4]} 5. f4 {[%clk 0:04:49.2]}
5... Nd7 {[%clk 0:04:25.6]} 6. Nf3 {[%clk 0:04:46.8]} 6... Qa5 {[%clk
0:04:23.7]} 7. Bd2 {[%clk 0:04:41.2]} 7... Qc7 {[%clk 0:04:17]} 8. Bd3 {[%clk
0:04:30.9]} 8... Nh6 {[%clk 0:04:07.8]} 9. O-O {[%clk 0:04:26.9]} 9... a6 {[%clk
0:04:03.2]} 10. a4 {[%clk 0:04:24.5]} 10... b6 {[%clk 0:03:59]} 11. e5 {[%clk
0:04:22.2]} 11... O-O {[%clk 0:03:55.9]} 12. Ng5 {[%clk 0:04:14.1]} 12... c5
{[%clk 0:03:44.9]} 13. Nd5 {[%clk 0:03:55.7]} 13... Qd8 {[%clk 0:03:43.1]} 14.
Bc3 {[%clk 0:03:46.2]} 14... cxd4 {[%clk 0:03:39.5]} 15. Bxd4 {[%clk 0:03:43.7]}
15... dxe5 {[%clk 0:03:37.8]} 16. fxe5 {[%clk 0:03:36.2]} 16... e6 {[%clk
0:03:31.7]} 17. Nxe6 {[%clk 0:03:13]} 17... fxe6 {[%clk 0:03:28.5]} 18. Rxf8+
{[%clk 0:02:55.8]} 18... Bxf8 {[%clk 0:03:25.7]} 19. Nf4 {[%clk 0:02:54.7]}
19... Nc5 {[%clk 0:03:21.1]} 20. Bxg6 {[%clk 0:02:43.6]} 20... hxg6 {[%clk
0:03:11.7]} 21. Nxg6 {[%clk 0:02:41.9]} 21... Nf5 {[%clk 0:03:04.8]} 22. Nxf8
{[%clk 0:02:32.8]} 22... Qxd4+ {[%clk 0:03:02.2]} 23. Qxd4 {[%clk 0:02:23.4]}
23... Nxd4 {[%clk 0:03:02.1]} 24. Ng6 {[%clk 0:02:18]} 24... a5 {[%clk 0:03:00]}
25. Rf1 {[%clk 0:02:14.4]} 25... Kg7 {[%clk 0:02:53.2]} 26. Ne7 {[%clk
0:02:05.1]} 26... Ba6 {[%clk 0:02:51.7]} 27. h4 {[%clk 0:01:47.1]} 27... Re8
{[%clk 0:02:49.8]} 28. Nd5 {[%clk 0:01:41.7]} 28... exd5 {[%clk 0:02:48.5]} 29.
Re1 {[%clk 0:01:38.2]} 29... Bxc4 {[%clk 0:02:45.1]} 30. Kf2 {[%clk 0:01:32.7]}
30... Nd3+ {[%clk 0:02:44]} 31. Kf1 {[%clk 0:01:30.9]} 31... Nxe1+ {[%clk
0:02:43.9]} 0-1

[Event "Live Chess"]
[Site "Chess.com"]
[Date "2024.06.02"]
[Round "-"]
[White "booktrunk"]
[Black "DoYouLikeCurry"]
[Result "1-0"]
[WhiteElo "1497"]
[BlackElo "1423"]
[TimeControl "300"]
[EndTime "7:10:09 PDT"]
[Termination "booktrunk won on time"]

1. d4 {[%clk 0:04:55.7]} 1... f5 {[%clk 0:04:56.9]} 2. Nc3 {[%clk 0:04:51.9]}
2... e6 {[%clk 0:04:53.9]} 3. Bf4 {[%clk 0:04:36.9]} 3... b6 {[%clk 0:04:35.9]}
4. Nb5 {[%clk 0:04:33.1]} 4... Na6 {[%clk 0:04:21.8]} 5. e3 {[%clk 0:04:30.3]}
5... c6 {[%clk 0:03:50.8]} 6. Nd6+ {[%clk 0:04:26.7]} 6... Ke7 {[%clk
0:03:43.4]} 7. Bg5+ {[%clk 0:04:15]} 7... Nf6 {[%clk 0:03:39.2]} 8. Nxc8+ {[%clk
0:04:12.8]} 8... Qxc8 {[%clk 0:03:37.1]} 9. Qd2 {[%clk 0:04:07.6]} 9... Kf7
{[%clk 0:03:32.9]} 10. Nf3 {[%clk 0:04:01.5]} 10... Ne4 {[%clk 0:03:25.9]} 11.
Ne5+ {[%clk 0:03:59.5]} 11... Kg8 {[%clk 0:03:15.6]} 12. Qe2 {[%clk 0:03:56]}
12... Nxg5 {[%clk 0:03:13]} 13. Qh5 {[%clk 0:03:52.4]} 13... d6 {[%clk
0:02:00.2]} 14. Nxc6 {[%clk 0:03:34.6]} 14... Qxc6 {[%clk 0:01:51.8]} 15. Qxg5
{[%clk 0:03:32.3]} 15... Nb4 {[%clk 0:01:45.8]} 16. c3 {[%clk 0:03:28.8]} 16...
Nc2+ {[%clk 0:01:43.9]} 17. Kd2 {[%clk 0:03:26.2]} 17... Nxa1 {[%clk 0:01:42.3]}
18. Bd3 {[%clk 0:03:24.7]} 18... Rc8 {[%clk 0:01:34.9]} 19. Rxa1 {[%clk
0:03:21.7]} 19... h6 {[%clk 0:01:26.1]} 20. Qg3 {[%clk 0:03:18.3]} 20... d5
{[%clk 0:01:13.4]} 21. h4 {[%clk 0:03:14.6]} 21... Bd6 {[%clk 0:01:11.4]} 22.
Qg6 {[%clk 0:03:08.3]} 22... Qe8 {[%clk 0:01:06.9]} 23. Qxe8+ {[%clk 0:02:56.9]}
23... Rxe8 {[%clk 0:01:06.8]} 24. b3 {[%clk 0:02:55.2]} 24... Kf7 {[%clk
0:01:04.7]} 25. f4 {[%clk 0:02:52.1]} 25... Be7 {[%clk 0:01:00.7]} 26. g3 {[%clk
0:02:49.7]} 26... Rhg8 {[%clk 0:00:56]} 27. Rg1 {[%clk 0:02:45.8]} 27... g5
{[%clk 0:00:53.8]} 28. fxg5 {[%clk 0:02:42.7]} 28... hxg5 {[%clk 0:00:52.8]} 29.
h5 {[%clk 0:02:41.5]} 29... g4 {[%clk 0:00:49]} 30. Rh1 {[%clk 0:02:39.1]} 30...
Rh8 {[%clk 0:00:46.5]} 31. c4 {[%clk 0:02:35.1]} 31... dxc4 {[%clk 0:00:40.1]}
32. bxc4 {[%clk 0:02:33.1]} 32... Kf6 {[%clk 0:00:35.2]} 33. e4 {[%clk
0:02:31.4]} 33... Kg5 {[%clk 0:00:27.5]} 34. exf5 {[%clk 0:02:29.1]} 34... exf5
{[%clk 0:00:26.4]} 35. h6 {[%clk 0:02:25.4]} 35... Rd8 {[%clk 0:00:20.9]} 36.
Ke3 {[%clk 0:02:19.3]} 36... Bd6 {[%clk 0:00:18.8]} 37. h7 {[%clk 0:02:15.6]}
37... Bxg3 {[%clk 0:00:16.9]} 38. Be2 {[%clk 0:02:07.2]} 38... Bf4+ {[%clk
0:00:15]} 39. Kd3 {[%clk 0:02:04.9]} 39... Kg6 {[%clk 0:00:13.1]} 40. Bf1 {[%clk
0:02:01.8]} 40... Rxh7 {[%clk 0:00:12.7]} 41. Rg1 {[%clk 0:01:59.8]} 41... Rh3+
{[%clk 0:00:11.3]} 42. Bxh3 {[%clk 0:01:57]} 42... Re8 {[%clk 0:00:06.6]} 43.
Kc2 {[%clk 0:01:50.9]} 43... Re3 {[%clk 0:00:05.3]} 44. Bf1 {[%clk 0:01:48.1]}
44... Rg3 {[%clk 0:00:03]} 45. Rh1 {[%clk 0:01:45.7]} 45... Rh3 {[%clk
0:00:00.7]} 46. Bxh3 {[%clk 0:01:43.5]} 46... gxh3 {[%clk 0:00:00.4]} 47. Rxh3
{[%clk 0:01:42]} 1-0

[Event "Live Chess"]
[Site "Chess.com"]
[Date "2024.06.02"]
[Round "-"]
[White "Pandreq"]
[Black "DoctorMantisTobogganMD"]
[Result "0-1"]
[WhiteElo "1249"]
[BlackElo "2220"]
[TimeControl "300"]
[EndTime "7:10:09 PDT"]
[Termination "DoctorMantisTobogganMD won by resignation"]

1. d4 {[%clk 0:04:59.3]} 1... Nf6 {[%clk 0:04:57.5]} 2. c4 {[%clk 0:04:57.7]}
2... Nc6 {[%clk 0:04:56.6]} 3. Nf3 {[%clk 0:04:56]} 3... e6 {[%clk 0:04:55.9]}
4. a3 {[%clk 0:04:54.3]} 4... Be7 {[%clk 0:04:53.8]} 5. Nc3 {[%clk 0:04:53.6]}
5... d6 {[%clk 0:04:53]} 6. Bg5 {[%clk 0:04:51.2]} 6... h6 {[%clk 0:04:51.7]} 7.
Bh4 {[%clk 0:04:50.1]} 7... e5 {[%clk 0:04:51.1]} 8. d5 {[%clk 0:04:48]} 8...
Nb8 {[%clk 0:04:50.2]} 9. e4 {[%clk 0:04:45]} 9... Bg4 {[%clk 0:04:46.7]} 10.
Be2 {[%clk 0:04:42.7]} 10... Nbd7 {[%clk 0:04:44.6]} 11. h3 {[%clk 0:04:40.5]}
11... Bxf3 {[%clk 0:04:43.6]} 12. Bxf3 {[%clk 0:04:38.7]} 12... a5 {[%clk
0:04:43.5]} 13. b4 {[%clk 0:04:35]} 13... g5 {[%clk 0:04:39.8]} 14. Bg3 {[%clk
0:04:33.3]} 14... b6 {[%clk 0:04:38.8]} 15. b5 {[%clk 0:04:31]} 15... Nc5 {[%clk
0:04:37.1]} 16. Qc2 {[%clk 0:04:19.5]} 16... a4 {[%clk 0:04:34.4]} 17. O-O
{[%clk 0:04:08.5]} 17... h5 {[%clk 0:04:30.4]} 18. h4 {[%clk 0:04:00.9]} 18...
gxh4 {[%clk 0:04:26]} 19. Bxh4 {[%clk 0:03:59.6]} 19... Ng4 {[%clk 0:04:25.4]}
20. Bxe7 {[%clk 0:03:56.2]} 20... Qxe7 {[%clk 0:04:25.3]} 21. Bxg4 {[%clk
0:03:49.4]} 21... hxg4 {[%clk 0:04:24]} 22. f3 {[%clk 0:03:47.2]} 22... g3
{[%clk 0:04:21.2]} 23. Ne2 {[%clk 0:03:36.9]} 23... Qh4 {[%clk 0:04:19.6]} 24.
Nxg3 {[%clk 0:03:31.3]} 24... Qxg3 {[%clk 0:04:17.4]} 25. Rf2 {[%clk 0:03:23.4]}
25... Qh2+ {[%clk 0:04:09.9]} 26. Kf1 {[%clk 0:03:22.3]} 26... Qh1+ {[%clk
0:04:09.8]} 27. Ke2 {[%clk 0:03:20.4]} 27... Qxa1 {[%clk 0:04:08.6]} 0-1

[Event "Live Chess"]
[Site "Chess.com"]
[Date "2024.06.02"]
[Round "-"]
[White "GrahamCuthbert"]
[Black "davigator"]
[Result "0-1"]
[WhiteElo "1037"]
[BlackElo "2354"]
[TimeControl "300"]
[EndTime "7:10:16 PDT"]
[Termination "davigator won by resignation"]

1. d4 {[%clk 0:04:56.9]} 1... Nf6 {[%clk 0:04:58.5]} 2. Bf4 {[%clk 0:04:56.1]}
2... g6 {[%clk 0:04:57.5]} 3. Nf3 {[%clk 0:04:54.7]} 3... Bg7 {[%clk 0:04:57]}
4. e3 {[%clk 0:04:53.8]} 4... d6 {[%clk 0:04:56.5]} 5. c4 {[%clk 0:04:46.4]}
5... c6 {[%clk 0:04:55.4]} 6. Be2 {[%clk 0:04:39.9]} 6... a5 {[%clk 0:04:54.4]}
7. a4 {[%clk 0:04:35.6]} 7... Na6 {[%clk 0:04:53.2]} 8. Nbd2 {[%clk 0:04:17.5]}
8... Nb4 {[%clk 0:04:47.9]} 9. O-O {[%clk 0:04:09.6]} 9... Bf5 {[%clk
0:04:46.8]} 10. b3 {[%clk 0:03:57.2]} 10... Qb6 {[%clk 0:04:44.3]} 11. h3 {[%clk
0:03:47.8]} 11... h6 {[%clk 0:04:41.4]} 12. g4 {[%clk 0:03:45.8]} 12... Bd3
{[%clk 0:04:37.8]} 13. Rc1 {[%clk 0:03:11.6]} 13... Bxe2 {[%clk 0:04:33.3]} 14.
Qxe2 {[%clk 0:03:06.2]} 14... O-O {[%clk 0:04:28.5]} 15. c5 {[%clk 0:02:55.5]}
15... dxc5 {[%clk 0:04:26.7]} 16. dxc5 {[%clk 0:02:54.2]} 16... Qa7 {[%clk
0:04:26.1]} 17. Ne5 {[%clk 0:02:47.2]} 17... Rad8 {[%clk 0:04:23.4]} 18. Rfd1
{[%clk 0:02:34.3]} 18... Nfd5 {[%clk 0:04:21.7]} 19. Bg3 {[%clk 0:02:24.8]}
19... Na2 {[%clk 0:04:20.5]} 20. Rc2 {[%clk 0:02:21]} 20... Nac3 {[%clk
0:04:19.7]} 21. Qf1 {[%clk 0:02:15.4]} 21... Nxd1 {[%clk 0:04:18.1]} 22. Qxd1
{[%clk 0:02:14.4]} 22... Nb4 {[%clk 0:04:17.6]} 23. Rc1 {[%clk 0:02:04.5]} 23...
Bxe5 {[%clk 0:04:16.1]} 24. Bxe5 {[%clk 0:01:57.5]} 24... Nd3 {[%clk 0:04:15.5]}
25. Rc3 {[%clk 0:01:44.3]} 25... Nxe5 {[%clk 0:04:13.8]} 26. Nf3 {[%clk
0:01:39.1]} 26... Rxd1+ {[%clk 0:04:12.1]} 0-1

[Event "Live Chess"]
[Site "Chess.com"]
[Date "2024.06.02"]
[Round "-"]
[White "Kyrylo7770"]
[Black "Queensandpawns"]
[Result "0-1"]
[WhiteElo "1641"]
[BlackElo "2297"]
[TimeControl "300"]
[EndTime "7:10:16 PDT"]
[Termination "Queensandpawns won by checkmate"]

1. d4 {[%clk 0:04:59.3]} 1... e5 {[%clk 0:04:59.1]} 2. dxe5 {[%clk 0:04:58.2]}
2... Bc5 {[%clk 0:04:51.1]} 3. Nf3 {[%clk 0:04:57.5]} 3... d6 {[%clk 0:04:47.3]}
4. Bg5 {[%clk 0:04:56.4]} 4... Ne7 {[%clk 0:04:47.2]} 5. exd6 {[%clk 0:04:54.8]}
5... Nbc6 {[%clk 0:04:46.9]} 6. e3 {[%clk 0:04:50.7]} 6... Bxd6 {[%clk
0:04:45.5]} 7. Nc3 {[%clk 0:04:49.2]} 7... O-O {[%clk 0:04:44.8]} 8. Be2 {[%clk
0:04:48]} 8... h6 {[%clk 0:04:43.8]} 9. Bh4 {[%clk 0:04:47]} 9... g5 {[%clk
0:04:42.4]} 10. Bg3 {[%clk 0:04:46.4]} 10... Nf5 {[%clk 0:04:37.4]} 11. Bxd6
{[%clk 0:04:43.4]} 11... Nxd6 {[%clk 0:04:37.3]} 12. Bd3 {[%clk 0:04:41.9]}
12... f5 {[%clk 0:04:34.7]} 13. O-O {[%clk 0:04:35.5]} 13... Qf6 {[%clk
0:04:32.5]} 14. Nd5 {[%clk 0:04:34.3]} 14... Qg7 {[%clk 0:04:28.6]} 15. c3
{[%clk 0:04:31.4]} 15... Be6 {[%clk 0:04:24.9]} 16. c4 {[%clk 0:04:22.7]} 16...
Ne4 {[%clk 0:04:09.8]} 17. Bxe4 {[%clk 0:03:58.5]} 17... fxe4 {[%clk 0:04:09.7]}
18. Nd4 {[%clk 0:03:57.8]} 18... Bxd5 {[%clk 0:04:02.8]} 19. cxd5 {[%clk
0:03:57]} 19... Nxd4 {[%clk 0:04:02.2]} 20. exd4 {[%clk 0:03:55.4]} 20... Rad8
{[%clk 0:03:59.9]} 21. Qg4 {[%clk 0:03:49.1]} 21... Qxd4 {[%clk 0:03:43.9]} 22.
Qe6+ {[%clk 0:03:46.8]} 22... Kg7 {[%clk 0:03:42.5]} 23. Rfd1 {[%clk 0:03:44.4]}
23... Qxf2+ {[%clk 0:03:40.8]} 24. Kh1 {[%clk 0:03:42.8]} 24... e3 {[%clk
0:03:37.8]} 25. Rf1 {[%clk 0:03:41.1]} 25... Qxf1+ {[%clk 0:03:36]} 26. Rxf1
{[%clk 0:03:39.7]} 26... Rxf1# {[%clk 0:03:35.9]} 0-1

[Event "Live Chess"]
[Site "Chess.com"]
[Date "2024.06.02"]
[Round "-"]
[White "grillage"]
[Black "stevochess11"]
[Result "0-1"]
[WhiteElo "1872"]
[BlackElo "1690"]
[TimeControl "300"]
[EndTime "7:10:30 PDT"]
[Termination "stevochess11 won by checkmate"]

1. d4 {[%clk 0:04:57.2]} 1... Nf6 {[%clk 0:04:58.9]} 2. Nf3 {[%clk 0:04:55.3]}
2... g6 {[%clk 0:04:53.5]} 3. c4 {[%clk 0:04:53.6]} 3... c5 {[%clk 0:04:50]} 4.
g3 {[%clk 0:04:51.2]} 4... cxd4 {[%clk 0:04:46.3]} 5. Nxd4 {[%clk 0:04:50.1]}
5... Bg7 {[%clk 0:04:46]} 6. Bg2 {[%clk 0:04:49.2]} 6... O-O {[%clk 0:04:44.2]}
7. O-O {[%clk 0:04:48.4]} 7... Nc6 {[%clk 0:04:42.4]} 8. Nxc6 {[%clk 0:04:21.9]}
8... bxc6 {[%clk 0:04:42.2]} 9. Nc3 {[%clk 0:04:19.3]} 9... Ba6 {[%clk
0:04:39.4]} 10. Qa4 {[%clk 0:04:06.7]} 10... Bb7 {[%clk 0:04:29.3]} 11. Rb1
{[%clk 0:04:01.4]} 11... Ng4 {[%clk 0:04:21.1]} 12. Bd2 {[%clk 0:03:44.3]} 12...
Ne5 {[%clk 0:04:13.7]} 13. b3 {[%clk 0:03:39.3]} 13... d5 {[%clk 0:03:59]} 14.
cxd5 {[%clk 0:03:35.9]} 14... cxd5 {[%clk 0:03:58.9]} 15. Rfd1 {[%clk
0:03:02.8]} 15... Bc6 {[%clk 0:03:48.5]} 16. Qh4 {[%clk 0:02:57.3]} 16... d4
{[%clk 0:03:39.6]} 17. Ne4 {[%clk 0:02:51.5]} 17... f5 {[%clk 0:03:28.5]} 18.
Nc5 {[%clk 0:02:43.6]} 18... Bxg2 {[%clk 0:03:23.4]} 19. Ne6 {[%clk 0:02:37.2]}
19... Qd5 {[%clk 0:03:20.2]} 20. Nxf8 {[%clk 0:02:25.4]} 20... Rxf8 {[%clk
0:03:11.8]} 21. f3 {[%clk 0:02:20.2]} 21... Bxf3 {[%clk 0:03:09.1]} 22. Qxe7
{[%clk 0:02:09.2]} 22... Bh1 {[%clk 0:03:02.1]} 23. e4 {[%clk 0:01:28.4]} 23...
Qxe4 {[%clk 0:02:53]} 24. Kf1 {[%clk 0:01:27.5]} 24... Qf3+ {[%clk 0:02:36.5]}
25. Ke1 {[%clk 0:01:22.8]} 25... Nd3# {[%clk 0:02:35.5]} 0-1

[Event "Live Chess"]
[Site "Chess.com"]
[Date "2024.06.02"]
[Round "-"]
[White "Larchikov"]
[Black "FlyingChessKestrel13"]
[Result "1-0"]
[WhiteElo "2085"]
[BlackElo "2067"]
[TimeControl "300"]
[EndTime "7:11:00 PDT"]
[Termination "Larchikov won by resignation"]

1. d4 {[%clk 0:04:55.3]} 1... d5 {[%clk 0:04:57.6]} 2. c4 {[%clk 0:04:55.2]}
2... dxc4 {[%clk 0:04:56.9]} 3. e4 {[%clk 0:04:53.7]} 3... e5 {[%clk 0:04:56.4]}
4. d5 {[%clk 0:04:52.6]} 4... Nf6 {[%clk 0:04:56.1]} 5. Nc3 {[%clk 0:04:50.5]}
5... b5 {[%clk 0:04:55.3]} 6. Nxb5 {[%clk 0:04:48.4]} 6... Nxe4 {[%clk
0:04:53.3]} 7. Qa4 {[%clk 0:04:24.3]} 7... Nd7 {[%clk 0:04:16.1]} 8. Qxc4 {[%clk
0:04:18.9]} 8... Bc5 {[%clk 0:04:14.8]} 9. Qxe4 {[%clk 0:04:16]} 9... a6 {[%clk
0:04:13.6]} 10. Nc3 {[%clk 0:04:13.4]} 10... O-O {[%clk 0:04:11.8]} 11. Nf3
{[%clk 0:04:00.9]} 11... f5 {[%clk 0:04:10.5]} 12. Qc4 {[%clk 0:03:59.1]} 12...
a5 {[%clk 0:04:01.8]} 13. d6+ {[%clk 0:03:45.7]} 13... Kh8 {[%clk 0:04:00.4]}
14. dxc7 {[%clk 0:03:43]} 14... Qf6 {[%clk 0:03:59.3]} 15. Bg5 {[%clk
0:03:35.1]} 15... Qg6 {[%clk 0:03:56.4]} 16. Qd5 {[%clk 0:03:18.9]} 16... e4
{[%clk 0:03:48.3]} 17. Qxa8 {[%clk 0:02:49]} 17... exf3 {[%clk 0:03:45.7]} 18.
Qxf3 {[%clk 0:02:47.8]} 18... Qxg5 {[%clk 0:03:40.9]} 19. Be2 {[%clk 0:02:46.1]}
19... Ne5 {[%clk 0:03:37.8]} 20. Qd5 {[%clk 0:02:40]} 20... Re8 {[%clk
0:03:34.2]} 21. O-O {[%clk 0:02:32.5]} 21... Bb6 {[%clk 0:03:24.3]} 22. Nb5
{[%clk 0:02:19.4]} 22... f4 {[%clk 0:02:56.1]} 23. Bf3 {[%clk 0:01:58.8]} 23...
Be6 {[%clk 0:02:48.4]} 24. Qxe6 {[%clk 0:01:33.8]} 24... Nxf3+ {[%clk
0:02:43.5]} 25. Kh1 {[%clk 0:01:31.9]} 25... Qh5 {[%clk 0:02:17.5]} 26. Qh3
{[%clk 0:01:23.9]} 26... Qxh3 {[%clk 0:02:12.9]} 27. gxh3 {[%clk 0:01:23.8]}
27... Nd2 {[%clk 0:02:04.7]} 28. Rfd1 {[%clk 0:01:17.9]} 28... Ne4 {[%clk
0:02:03.4]} 29. Rac1 {[%clk 0:01:09.1]} 29... Nxf2+ {[%clk 0:02:02]} 30. Kg2
{[%clk 0:01:07.7]} 30... f3+ {[%clk 0:01:58.5]} 31. Kxf3 {[%clk 0:00:57.3]}
31... Rf8+ {[%clk 0:01:57.3]} 32. Kg2 {[%clk 0:00:54.3]} 32... Bxc7 {[%clk
0:01:36.6]} 33. Nxc7 {[%clk 0:00:48.4]} 33... Nxd1 {[%clk 0:01:35.6]} 34. Rxd1
{[%clk 0:00:48.3]} 34... Rc8 {[%clk 0:01:34]} 35. Ne6 {[%clk 0:00:45.2]} 1-0

[Event "Live Chess"]
[Site "Chess.com"]
[Date "2024.06.02"]
[Round "-"]
[White "elephantgerrald"]
[Black "PureDashingOctopus"]
[Result "0-1"]
[WhiteElo "871"]
[BlackElo "2285"]
[TimeControl "300"]
[EndTime "7:11:06 PDT"]
[Termination "PureDashingOctopus won on time"]

1. e4 {[%clk 0:04:49.7]} 1... c5 {[%clk 0:04:59]} 2. Nf3 {[%clk 0:04:46.4]} 2...
d6 {[%clk 0:04:58.4]} 3. d4 {[%clk 0:04:42.9]} 3... cxd4 {[%clk 0:04:58.3]} 4.
Qxd4 {[%clk 0:04:38.6]} 4... Nc6 {[%clk 0:04:56.7]} 5. Qd1 {[%clk 0:04:34]} 5...
Nf6 {[%clk 0:04:55.2]} 6. Nc3 {[%clk 0:04:30.5]} 6... e5 {[%clk 0:04:53]} 7. Bc4
{[%clk 0:04:24.6]} 7... Be7 {[%clk 0:04:52]} 8. Bg5 {[%clk 0:04:13]} 8... O-O
{[%clk 0:04:50.6]} 9. Bxf6 {[%clk 0:04:09.9]} 9... Bxf6 {[%clk 0:04:49.4]} 10.
O-O {[%clk 0:04:08.1]} 10... Bg4 {[%clk 0:04:47.4]} 11. h3 {[%clk 0:03:44.9]}
11... Bh5 {[%clk 0:04:44.3]} 12. Nd5 {[%clk 0:03:39.8]} 12... Nd4 {[%clk
0:04:39.7]} 13. Be2 {[%clk 0:03:34]} 13... Nxe2+ {[%clk 0:04:35.4]} 14. Qxe2
{[%clk 0:03:31.4]} 14... Rc8 {[%clk 0:04:34.3]} 15. Nxf6+ {[%clk 0:02:24.5]}
15... Qxf6 {[%clk 0:04:32.5]} 16. Qe3 {[%clk 0:02:13.9]} 16... Bxf3 {[%clk
0:04:28.2]} 17. Qxf3 {[%clk 0:02:12.3]} 17... Qxf3 {[%clk 0:04:25.9]} 18. gxf3
{[%clk 0:02:01.7]} 18... Rxc2 {[%clk 0:04:24]} 19. b3 {[%clk 0:01:58.3]} 19...
Rfc8 {[%clk 0:04:17.2]} 20. Kg2 {[%clk 0:01:52.5]} 20... Kf8 {[%clk 0:04:15.1]}
21. Kg3 {[%clk 0:00:51.3]} 21... Ke7 {[%clk 0:04:13.1]} 0-1

[Event "Live Chess"]
[Site "Chess.com"]
[Date "2024.06.02"]
[Round "-"]
[White "uselessduffer"]
[Black "r0ad_t0-gm"]
[Result "1-0"]
[WhiteElo "2368"]
[BlackElo "2273"]
[TimeControl "300"]
[EndTime "7:11:10 PDT"]
[Termination "uselessduffer won by resignation"]

1. e4 {[%clk 0:04:54.5]} 1... c5 {[%clk 0:04:57.9]} 2. Nc3 {[%clk 0:04:53.4]}
2... Nc6 {[%clk 0:04:55.6]} 3. Bb5 {[%clk 0:04:52.4]} 3... Nd4 {[%clk
0:04:54.4]} 4. Nf3 {[%clk 0:04:50.9]} 4... a6 {[%clk 0:04:51.6]} 5. Bc4 {[%clk
0:04:49]} 5... b5 {[%clk 0:04:49.8]} 6. Bd5 {[%clk 0:04:47.6]} 6... Rb8 {[%clk
0:04:49.4]} 7. Nxd4 {[%clk 0:04:46.8]} 7... cxd4 {[%clk 0:04:49.2]} 8. Ne2
{[%clk 0:04:46.3]} 8... e6 {[%clk 0:04:48.5]} 9. Bb3 {[%clk 0:04:44.7]} 9... Bb7
{[%clk 0:04:45]} 10. d3 {[%clk 0:04:41.7]} 10... Bb4+ {[%clk 0:04:31.9]} 11. Bd2
{[%clk 0:04:25.9]} 11... Bc5 {[%clk 0:04:30.2]} 12. O-O {[%clk 0:04:20.6]} 12...
d5 {[%clk 0:04:28.8]} 13. exd5 {[%clk 0:03:09.8]} 13... Bxd5 {[%clk 0:04:28.7]}
14. Bxd5 {[%clk 0:03:08.9]} 14... Qxd5 {[%clk 0:04:28.6]} 15. Nf4 {[%clk
0:03:07.4]} 15... Qd7 {[%clk 0:04:26.7]} 16. Qh5 {[%clk 0:03:04.6]} 16... Be7
{[%clk 0:04:17.5]} 17. Qe5 {[%clk 0:02:55.8]} 17... Rc8 {[%clk 0:04:10.2]} 18.
Qxg7 {[%clk 0:02:50.2]} 18... Bf6 {[%clk 0:04:09.4]} 19. Qg3 {[%clk 0:02:46.7]}
19... Rxc2 {[%clk 0:04:07.7]} 20. Rfd1 {[%clk 0:02:35]} 20... Ne7 {[%clk
0:04:06.5]} 21. Nh5 {[%clk 0:02:27.7]} 21... Nd5 {[%clk 0:03:13]} 22. Nxf6+
{[%clk 0:02:25.5]} 22... Nxf6 {[%clk 0:03:12.9]} 23. Qg7 {[%clk 0:02:16.3]}
23... Rg8 {[%clk 0:03:12.2]} 24. Qxf6 {[%clk 0:02:15.5]} 24... Qd5 {[%clk
0:03:11.7]} 25. g3 {[%clk 0:02:05.9]} 25... h5 {[%clk 0:03:10.9]} 26. Rac1
{[%clk 0:01:56.1]} 26... Rc6 {[%clk 0:03:00.8]} 27. Rxc6 {[%clk 0:01:52.7]}
27... Qxc6 {[%clk 0:03:00.7]} 28. Rc1 {[%clk 0:01:51.8]} 28... Qd7 {[%clk
0:02:57.8]} 29. Bf4 {[%clk 0:01:47.2]} 29... Rg6 {[%clk 0:02:54]} 30. Qh8+
{[%clk 0:01:42.8]} 30... Ke7 {[%clk 0:02:53]} 31. Rc7 {[%clk 0:01:41.8]} 31...
Qxc7 {[%clk 0:02:52.6]} 32. Bxc7 {[%clk 0:01:41.1]} 1-0